[Event "Titled Tuesday Blitz July 4 Early 2023"]
[White "Ezat, Mohamed"]
[Black "Bharath Subramaniyam H"]
[WhiteFideId "10600906"]
[BlackFideId "46634827"]
[WhiteElo "2585"]
[BlackElo "2806"]
[Result "0-1"]
[Round "11"]
[TimeControl "180+2"]
[Date "2023.07.04"]
[WhiteClock "0:00:52"]
[BlackClock "0:01:38"]
[Board "41"]

1. d4 {[%clk 0:01:35]}  Nf6 {[%clk 0:02:54]} 2. c4 {[%clk 0:01:35]}  e6 {[%clk 0:02:53]} 3. Nc3 {[%clk 0:01:35]}  Bb4 {[%clk 0:02:51]} 4. e3 {[%clk 0:01:35]}  b6 {[%clk 0:02:50]} 5. a3 {[%clk 0:01:35]}  Bxc3+ {[%clk 0:02:50]} 6. bxc3 {[%clk 0:01:36]}  Bb7 {[%clk 0:02:49]} 7. f3 {[%clk 0:01:36]}  O-O {[%clk 0:02:47]} 8. Bd3 {[%clk 0:01:36]}  d6 {[%clk 0:02:47]} 9. Ne2 {[%clk 0:01:36]}  c5 {[%clk 0:02:47]} 10. O-O {[%clk 0:01:36]}  Nc6 {[%clk 0:02:47]} 11. e4 {[%clk 0:01:36]}  Rc8 {[%clk 0:02:42]} 12. Bg5 {[%clk 0:01:35]}  h6 {[%clk 0:02:41]} 13. Bh4 {[%clk 0:01:35]}  Ba6 {[%clk 0:02:28]} 14. f4 {[%clk 0:01:33]}  Qc7 {[%clk 0:02:04]} 15. Bxf6 {[%clk 0:01:31]}  gxf6 {[%clk 0:02:05]} 16. Ng3 {[%clk 0:01:32]}  Kh8 {[%clk 0:01:54]} 17. Nh5 {[%clk 0:01:31]}  Qe7 {[%clk 0:01:48]} 18. Qg4 {[%clk 0:01:29]}  Rg8 {[%clk 0:01:48]} 19. Qh4 {[%clk 0:01:29]}  f5 {[%clk 0:01:46]} 20. Nf6 {[%clk 0:01:25]}  Rg6 {[%clk 0:01:45]} 21. e5 {[%clk 0:01:25]}  cxd4 {[%clk 0:01:42]} 22. Rf3 {[%clk 0:01:14]}  dxe5 {[%clk 0:01:37]} 23. fxe5 {[%clk 0:00:52]}  Nxe5 {[%clk 0:01:38]} 0-1


[Site "https://www.chess.com"]

[Event "Titled Tuesday Blitz July 4 Early 2023"]
[White "Tologon tegin, Semetei"]
[Black "Czopor, Maciej"]
[WhiteFideId "13800574"]
[BlackFideId "21805431"]
[WhiteElo "2572"]
[BlackElo "2698"]
[Result "1-0"]
[Round "11"]
[TimeControl "180+2"]
[Date "2023.07.04"]
[WhiteClock "0:00:09"]
[BlackClock "0:00:00"]
[Board "45"]

1. b3 {[%clk 0:02:56]}  a5 {[%clk 0:02:59]} 2. Bb2 {[%clk 0:02:57]}  a4 {[%clk 0:02:59]} 3. e4 {[%clk 0:02:56]}  e6 {[%clk 0:02:55]} 4. h4 {[%clk 0:02:55]}  a3 {[%clk 0:02:54]} 5. Bc3 {[%clk 0:02:54]}  Nf6 {[%clk 0:02:54]} 6. h5 {[%clk 0:02:54]}  Nxe4 {[%clk 0:02:53]} 7. Bd4 {[%clk 0:02:45]}  c5 {[%clk 0:02:52]} 8. Be3 {[%clk 0:02:45]}  h6 {[%clk 0:02:46]} 9. Nf3 {[%clk 0:02:43]}  d5 {[%clk 0:02:46]} 10. d3 {[%clk 0:02:40]}  Nf6 {[%clk 0:02:41]} 11. Nbd2 {[%clk 0:02:33]}  Nc6 {[%clk 0:02:39]} 12. d4 {[%clk 0:02:30]}  cxd4 {[%clk 0:02:39]} 13. Nxd4 {[%clk 0:02:31]}  Bb4 {[%clk 0:02:39]} 14. Bd3 {[%clk 0:02:26]}  Bc3 {[%clk 0:02:36]} 15. Nxc6 {[%clk 0:02:24]}  bxc6 {[%clk 0:02:37]} 16. Rb1 {[%clk 0:02:25]}  O-O {[%clk 0:02:37]} 17. O-O {[%clk 0:02:24]}  e5 {[%clk 0:02:37]} 18. Bc5 {[%clk 0:02:16]}  Re8 {[%clk 0:02:35]} 19. Be2 {[%clk 0:02:12]}  e4 {[%clk 0:02:32]} 20. b4 {[%clk 0:02:08]}  Nd7 {[%clk 0:02:16]} 21. Be3 {[%clk 0:01:59]}  Qf6 {[%clk 0:01:47]} 22. Nb3 {[%clk 0:01:30]}  Nf8 {[%clk 0:01:20]} 23. Nd4 {[%clk 0:01:20]}  Ne6 {[%clk 0:01:11]} 24. Nxc6 {[%clk 0:01:17]}  d4 {[%clk 0:01:11]} 25. Bd2 {[%clk 0:01:14]}  Bb2 {[%clk 0:01:03]} 26. b5 {[%clk 0:01:00]}  Bb7 {[%clk 0:00:58]} 27. Bc4 {[%clk 0:00:55]}  Nf4 {[%clk 0:00:35]} 28. Qg4 {[%clk 0:00:53]}  Bxc6 {[%clk 0:00:14]} 29. bxc6 {[%clk 0:00:38]}  Qxc6 {[%clk 0:00:14]} 30. Bxf4 {[%clk 0:00:38]}  Qxc4 {[%clk 0:00:14]} 31. Bxh6 {[%clk 0:00:38]}  d3 {[%clk 0:00:15]} 32. Rxb2 {[%clk 0:00:38]}  Qd4 {[%clk 0:00:03]} 33. Rb4 {[%clk 0:00:35]}  Qf6 {[%clk 0:00:02]} 34. Bg5 {[%clk 0:00:32]}  Qd6 {[%clk 0:00:02]} 35. Rxe4 {[%clk 0:00:28]}  dxc2 {[%clk 0:00:02]} 36. Rc4 {[%clk 0:00:21]}  Qd3 {[%clk 0:00:03]} 37. Bh6 {[%clk 0:00:19]}  g6 {[%clk 0:00:03]} 38. hxg6 {[%clk 0:00:19]}  fxg6 {[%clk 0:00:03]} 39. Rc6 {[%clk 0:00:17]}  Ra6 {[%clk 0:00:02]} 40. Rxa6 {[%clk 0:00:14]}  Qxa6 {[%clk 0:00:03]} 41. Bc1 {[%clk 0:00:13]}  Qd3 {[%clk 0:00:02]} 42. Qg5 {[%clk 0:00:11]}  Rd8 {[%clk 0:00:02]} 43. Qf6 {[%clk 0:00:10]}  Qd6 {[%clk 0:00:01]} 44. Qc3 {[%clk 0:00:10]}  Qd1 {[%clk 0:00:01]} 45. Qb3+ {[%clk 0:00:10]}  Kg7 {[%clk 0:00:00]} 46. Be3 {[%clk 0:00:09]} 1-0


[Site "https://www.chess.com"]

[Event "Titled Tuesday Blitz July 4 Early 2023"]
[White "Komov, Roman"]
[Black "Demin, Vladimir"]
[WhiteFideId "24175714"]
[BlackFideId "4167457"]
[WhiteElo "2643"]
[BlackElo "2551"]
[Result "1-0"]
[Round "11"]
[TimeControl "180+2"]
[Date "2023.07.04"]
[WhiteClock "0:00:07"]
[BlackClock "0:00:09"]
[Board "48"]

1. e4 {[%clk 0:02:58]}  e5 {[%clk 0:02:59]} 2. Nf3 {[%clk 0:02:57]}  Nc6 {[%clk 0:03:00]} 3. Bc4 {[%clk 0:02:57]}  Bc5 {[%clk 0:02:59]} 4. c3 {[%clk 0:02:57]}  Nf6 {[%clk 0:02:59]} 5. d3 {[%clk 0:02:58]}  a6 {[%clk 0:02:57]} 6. O-O {[%clk 0:02:54]}  O-O {[%clk 0:02:56]} 7. Nbd2 {[%clk 0:02:51]}  Ba7 {[%clk 0:02:55]} 8. h3 {[%clk 0:02:49]}  h6 {[%clk 0:02:53]} 9. Re1 {[%clk 0:02:49]}  Re8 {[%clk 0:02:52]} 10. Nf1 {[%clk 0:02:41]}  d5 {[%clk 0:02:51]} 11. exd5 {[%clk 0:02:41]}  Nxd5 {[%clk 0:02:52]} 12. d4 {[%clk 0:02:42]}  e4 {[%clk 0:02:49]} 13. N3d2 {[%clk 0:02:35]}  b5 {[%clk 0:02:35]} 14. Bb3 {[%clk 0:02:33]}  Nf6 {[%clk 0:02:33]} 15. Ng3 {[%clk 0:02:26]}  Na5 {[%clk 0:01:53]} 16. Bc2 {[%clk 0:02:19]}  c5 {[%clk 0:01:52]} 17. Ndxe4 {[%clk 0:02:17]}  Bb7 {[%clk 0:01:47]} 18. Nxc5 {[%clk 0:02:01]}  Bxc5 {[%clk 0:01:42]} 19. dxc5 {[%clk 0:02:02]}  Qc7 {[%clk 0:01:37]} 20. Be3 {[%clk 0:00:47]}  Nc4 {[%clk 0:01:35]} 21. Bd4 {[%clk 0:00:47]}  Nxb2 {[%clk 0:01:27]} 22. Qd2 {[%clk 0:00:33]}  Nc4 {[%clk 0:01:27]} 23. Qd3 {[%clk 0:00:33]}  Red8 {[%clk 0:01:03]} 24. Nh5 {[%clk 0:00:23]}  Ne5 {[%clk 0:00:41]} 25. Rxe5 {[%clk 0:00:13]}  Qxe5 {[%clk 0:00:37]} 26. Nxf6+ {[%clk 0:00:14]}  Kf8 {[%clk 0:00:29]} 27. Nh7+ {[%clk 0:00:14]}  Kg8 {[%clk 0:00:27]} 28. Nf6+ {[%clk 0:00:12]}  Kf8 {[%clk 0:00:26]} 29. Nh7+ {[%clk 0:00:06]}  Kg8 {[%clk 0:00:26]} 30. Bxe5 {[%clk 0:00:06]}  Rxd3 {[%clk 0:00:26]} 31. Bxd3 {[%clk 0:00:07]}  Rd8 {[%clk 0:00:23]} 32. Bd4 {[%clk 0:00:08]}  Bd5 {[%clk 0:00:09]} 33. a4 {[%clk 0:00:07]} 1-0


[Site "https://www.chess.com"]

[Event "Titled Tuesday Blitz July 4 Early 2023"]
[White "Lana Rodriguez, David"]
[Black "Streltsov, Alexey"]
[WhiteFideId "2270803"]
[BlackFideId "24104434"]
[WhiteElo "2612"]
[BlackElo "2471"]
[Result "0-1"]
[Round "11"]
[TimeControl "180+2"]
[Date "2023.07.04"]
[WhiteClock "0:01:30"]
[BlackClock "0:00:24"]
[Board "54"]

1. e4 {[%clk 0:03:00]}  c6 {[%clk 0:02:59]} 2. Nf3 {[%clk 0:03:00]}  d5 {[%clk 0:03:00]} 3. exd5 {[%clk 0:03:01]}  cxd5 {[%clk 0:03:01]} 4. d4 {[%clk 0:03:02]}  Nf6 {[%clk 0:03:00]} 5. c3 {[%clk 0:03:03]}  Bg4 {[%clk 0:03:00]} 6. Nbd2 {[%clk 0:03:00]}  e6 {[%clk 0:02:58]} 7. Bb5+ {[%clk 0:03:00]}  Nbd7 {[%clk 0:02:55]} 8. Qa4 {[%clk 0:03:00]}  a6 {[%clk 0:02:54]} 9. Bd3 {[%clk 0:03:00]}  Bd6 {[%clk 0:02:52]} 10. Ne5 {[%clk 0:02:59]}  O-O {[%clk 0:02:49]} 11. Nxd7 {[%clk 0:02:54]}  Qxd7 {[%clk 0:02:48]} 12. Qxd7 {[%clk 0:02:54]}  Nxd7 {[%clk 0:02:49]} 13. O-O {[%clk 0:02:55]}  e5 {[%clk 0:02:46]} 14. dxe5 {[%clk 0:02:54]}  Nxe5 {[%clk 0:02:47]} 15. Bc2 {[%clk 0:02:54]}  Rac8 {[%clk 0:02:36]} 16. Nb3 {[%clk 0:02:52]}  Rfe8 {[%clk 0:02:29]} 17. h3 {[%clk 0:02:52]}  Be2 {[%clk 0:02:16]} 18. Re1 {[%clk 0:02:52]}  Bd3 {[%clk 0:02:16]} 19. Bxd3 {[%clk 0:02:50]}  Nxd3 {[%clk 0:02:12]} 20. Rd1 {[%clk 0:02:50]}  Re1+ {[%clk 0:01:44]} 21. Rxe1 {[%clk 0:02:50]}  Nxe1 {[%clk 0:01:44]} 22. Bf4 {[%clk 0:02:43]}  Nf3+ {[%clk 0:01:39]} 23. gxf3 {[%clk 0:02:42]}  Bxf4 {[%clk 0:01:40]} 24. Rd1 {[%clk 0:02:42]}  Rd8 {[%clk 0:01:20]} 25. c4 {[%clk 0:02:41]}  d4 {[%clk 0:01:09]} 26. Rxd4 {[%clk 0:02:37]}  Rxd4 {[%clk 0:01:09]} 27. Nxd4 {[%clk 0:02:37]}  Be5 {[%clk 0:01:08]} 28. Nb3 {[%clk 0:02:34]}  b6 {[%clk 0:01:09]} 29. c5 {[%clk 0:02:34]}  bxc5 {[%clk 0:01:10]} 30. Nxc5 {[%clk 0:02:34]}  Bxb2 {[%clk 0:01:10]} 31. Nxa6 {[%clk 0:02:34]}  g5 {[%clk 0:01:11]} 32. Kf1 {[%clk 0:02:31]}  Kg7 {[%clk 0:01:11]} 33. Ke2 {[%clk 0:02:32]}  Kg6 {[%clk 0:01:12]} 34. Kd3 {[%clk 0:02:33]}  Kh5 {[%clk 0:01:12]} 35. Nb4 {[%clk 0:02:23]}  Be5 {[%clk 0:01:09]} 36. Nc6 {[%clk 0:02:20]}  Bc7 {[%clk 0:01:10]} 37. a4 {[%clk 0:02:19]}  Kh4 {[%clk 0:01:10]} 38. a5 {[%clk 0:02:19]}  Kxh3 {[%clk 0:01:11]} 39. a6 {[%clk 0:02:20]}  Bb6 {[%clk 0:01:11]} 40. a7 {[%clk 0:02:20]}  Bxa7 {[%clk 0:01:12]} 41. Nxa7 {[%clk 0:02:21]}  Kg2 {[%clk 0:01:13]} 42. Ke2 {[%clk 0:02:07]}  h5 {[%clk 0:01:13]} 43. Nc6 {[%clk 0:02:08]}  h4 {[%clk 0:01:13]} 44. Ne5 {[%clk 0:02:08]}  f5 {[%clk 0:00:43]} 45. f4 {[%clk 0:02:03]}  h3 {[%clk 0:00:35]} 46. Nf3 {[%clk 0:01:42]}  g4 {[%clk 0:00:35]} 47. Ne1+ {[%clk 0:01:43]}  Kg1 {[%clk 0:00:35]} 48. f3 {[%clk 0:01:37]}  g3 {[%clk 0:00:33]} 49. Nc2 {[%clk 0:01:31]}  h2 {[%clk 0:00:27]} 50. Nd4 {[%clk 0:01:31]}  h1=Q {[%clk 0:00:26]} 51. Nxf5 {[%clk 0:01:32]}  Qg2+ {[%clk 0:00:25]} 52. Ke3 {[%clk 0:01:32]}  Qf2+ {[%clk 0:00:24]} 53. Ke4 {[%clk 0:01:30]}  g2 {[%clk 0:00:24]} 0-1


[Site "https://www.chess.com"]

[Event "Titled Tuesday Blitz July 4 Early 2023"]
[White "Akhmedinov, Satbek"]
[Black "Terletsky, Oleg"]
[WhiteFideId "13714287"]
[BlackFideId "14116774"]
[WhiteElo "2661"]
[BlackElo "2547"]
[Result "1-0"]
[Round "11"]
[TimeControl "180+2"]
[Date "2023.07.04"]
[WhiteClock "0:01:47"]
[BlackClock "0:00:00"]
[Board "59"]

1. e4 {[%clk 0:03:00]}  e5 {[%clk 0:02:56]} 2. Nf3 {[%clk 0:03:01]}  Nc6 {[%clk 0:02:55]} 3. Bc4 {[%clk 0:03:01]}  Nf6 {[%clk 0:02:54]} 4. d3 {[%clk 0:03:00]}  h6 {[%clk 0:02:54]} 5. c3 {[%clk 0:03:00]}  d6 {[%clk 0:02:55]} 6. O-O {[%clk 0:03:00]}  g6 {[%clk 0:02:54]} 7. h3 {[%clk 0:03:00]}  Bg7 {[%clk 0:02:54]} 8. Be3 {[%clk 0:03:00]}  O-O {[%clk 0:02:53]} 9. Nbd2 {[%clk 0:03:01]}  d5 {[%clk 0:02:49]} 10. exd5 {[%clk 0:03:00]}  Nxd5 {[%clk 0:02:50]} 11. Bc5 {[%clk 0:03:00]}  Re8 {[%clk 0:02:48]} 12. Re1 {[%clk 0:02:56]}  Nb6 {[%clk 0:02:31]} 13. Bxb6 {[%clk 0:02:48]}  axb6 {[%clk 0:02:31]} 14. Nb3 {[%clk 0:02:45]}  Bf5 {[%clk 0:02:24]} 15. Qe2 {[%clk 0:02:35]}  e4 {[%clk 0:02:15]} 16. dxe4 {[%clk 0:02:34]}  Bxe4 {[%clk 0:02:11]} 17. Nfd2 {[%clk 0:02:32]}  Bf5 {[%clk 0:01:45]} 18. Qf3 {[%clk 0:02:31]}  Ne5 {[%clk 0:01:19]} 19. Qxb7 {[%clk 0:02:30]}  Nxc4 {[%clk 0:01:17]} 20. Nxc4 {[%clk 0:02:30]}  Be6 {[%clk 0:01:01]} 21. Ne3 {[%clk 0:02:21]}  Qg5 {[%clk 0:00:47]} 22. Qf3 {[%clk 0:02:20]}  h5 {[%clk 0:00:33]} 23. Nd4 {[%clk 0:02:12]}  Bxa2 {[%clk 0:00:24]} 24. Qc6 {[%clk 0:02:08]}  Bxd4 {[%clk 0:00:13]} 25. cxd4 {[%clk 0:02:07]}  Red8 {[%clk 0:00:09]} 26. Qxc7 {[%clk 0:02:06]}  Be6 {[%clk 0:00:05]} 27. Rxa8 {[%clk 0:02:05]}  Rxa8 {[%clk 0:00:05]} 28. Qxb6 {[%clk 0:02:05]}  Bxh3 {[%clk 0:00:04]} 29. d5 {[%clk 0:02:05]}  Re8 {[%clk 0:00:03]} 30. g3 {[%clk 0:02:02]}  h4 {[%clk 0:00:02]} 31. Qd6 {[%clk 0:01:59]}  Re5 {[%clk 0:00:01]} 32. Ng2 {[%clk 0:01:49]}  Bxg2 {[%clk 0:00:01]} 33. Qxe5 {[%clk 0:01:46]}  Qxe5 {[%clk 0:00:01]} 34. Rxe5 {[%clk 0:01:47]}  h3 {[%clk 0:00:00]} 35. d6 {[%clk 0:01:47]} 1-0


[Site "https://www.chess.com"]

[Event "Titled Tuesday Blitz July 4 Early 2023"]
[White "Kamalidenova, Meruert"]
[Black "Jovic, Stanoje"]
[WhiteFideId "13712802"]
[BlackFideId "905020"]
[WhiteElo "2651"]
[BlackElo "2542"]
[Result "0-1"]
[Round "11"]
[TimeControl "180+2"]
[Date "2023.07.04"]
[WhiteClock "0:00:00"]
[BlackClock "0:00:08"]
[Board "60"]

1. d4 {[%clk 0:03:00]}  Nf6 {[%clk 0:02:57]} 2. c4 {[%clk 0:02:59]}  e6 {[%clk 0:02:55]} 3. Nc3 {[%clk 0:02:59]}  Bb4 {[%clk 0:02:53]} 4. Nf3 {[%clk 0:02:58]}  b6 {[%clk 0:02:51]} 5. e3 {[%clk 0:02:51]}  Bb7 {[%clk 0:02:50]} 6. Bd3 {[%clk 0:02:51]}  O-O {[%clk 0:02:49]} 7. O-O {[%clk 0:02:49]}  d5 {[%clk 0:02:48]} 8. cxd5 {[%clk 0:02:43]}  exd5 {[%clk 0:02:47]} 9. Ne5 {[%clk 0:02:43]}  Nbd7 {[%clk 0:02:45]} 10. f4 {[%clk 0:02:42]}  c5 {[%clk 0:02:44]} 11. a3 {[%clk 0:02:40]}  Ba5 {[%clk 0:02:36]} 12. Bd2 {[%clk 0:02:37]}  c4 {[%clk 0:02:35]} 13. Bc2 {[%clk 0:02:36]}  Rc8 {[%clk 0:02:27]} 14. Qf3 {[%clk 0:02:35]}  a6 {[%clk 0:02:17]} 15. Qh3 {[%clk 0:02:34]}  g6 {[%clk 0:02:10]} 16. f5 {[%clk 0:02:31]}  Re8 {[%clk 0:01:55]} 17. fxg6 {[%clk 0:02:30]}  hxg6 {[%clk 0:01:48]} 18. Bxg6 {[%clk 0:02:26]}  fxg6 {[%clk 0:01:29]} 19. Nxg6 {[%clk 0:02:26]}  Kg7 {[%clk 0:01:17]} 20. Nh4 {[%clk 0:02:09]}  Rh8 {[%clk 0:01:02]} 21. Nf5+ {[%clk 0:02:06]}  Kf7 {[%clk 0:00:47]} 22. Qg3 {[%clk 0:02:06]}  Qg8 {[%clk 0:00:40]} 23. Nd6+ {[%clk 0:01:50]}  Ke6 {[%clk 0:00:39]} 24. Qf4 {[%clk 0:01:42]}  Qg4 {[%clk 0:00:34]} 25. Nxb7 {[%clk 0:01:13]}  Qxf4 {[%clk 0:00:30]} 26. exf4 {[%clk 0:01:14]}  Bxc3 {[%clk 0:00:29]} 27. Bxc3 {[%clk 0:01:09]}  Ne4 {[%clk 0:00:25]} 28. f5+ {[%clk 0:01:06]}  Kf7 {[%clk 0:00:22]} 29. Bb4 {[%clk 0:01:04]}  Rc6 {[%clk 0:00:20]} 30. Rae1 {[%clk 0:00:40]}  Ndf6 {[%clk 0:00:20]} 31. h3 {[%clk 0:00:30]}  Rb8 {[%clk 0:00:18]} 32. Nd6+ {[%clk 0:00:26]}  Nxd6 {[%clk 0:00:17]} 33. Re6 {[%clk 0:00:26]}  Rd8 {[%clk 0:00:15]} 34. g4 {[%clk 0:00:24]}  a5 {[%clk 0:00:15]} 35. Be1 {[%clk 0:00:21]}  Re8 {[%clk 0:00:11]} 36. Bh4 {[%clk 0:00:18]}  Nfe4 {[%clk 0:00:08]} 37. Rh6 {[%clk 0:00:16]}  Rg8 {[%clk 0:00:07]} 38. Rh7+ {[%clk 0:00:15]}  Rg7 {[%clk 0:00:07]} 39. Rh6 {[%clk 0:00:15]}  Rc8 {[%clk 0:00:05]} 40. Kh2 {[%clk 0:00:14]}  Rcg8 {[%clk 0:00:05]} 41. Bg3 {[%clk 0:00:14]}  Ne8 {[%clk 0:00:03]} 42. Be5 {[%clk 0:00:14]}  N8f6 {[%clk 0:00:03]} 43. Re1 {[%clk 0:00:10]}  Rh7 {[%clk 0:00:03]} 44. Rxh7+ {[%clk 0:00:09]}  Nxh7 {[%clk 0:00:04]} 45. Bf4 {[%clk 0:00:08]}  Nhg5 {[%clk 0:00:03]} 46. Bxg5 {[%clk 0:00:08]}  Rxg5 {[%clk 0:00:02]} 47. Kg2 {[%clk 0:00:07]}  b5 {[%clk 0:00:02]} 48. Kf3 {[%clk 0:00:07]}  b4 {[%clk 0:00:02]} 49. axb4 {[%clk 0:00:07]}  axb4 {[%clk 0:00:02]} 50. Ra1 {[%clk 0:00:08]}  c3 {[%clk 0:00:02]} 51. bxc3 {[%clk 0:00:08]}  bxc3 {[%clk 0:00:02]} 52. Kf4 {[%clk 0:00:08]}  Rg8 {[%clk 0:00:02]} 53. Rc1 {[%clk 0:00:07]}  Rc8 {[%clk 0:00:02]} 54. h4 {[%clk 0:00:08]}  c2 {[%clk 0:00:02]} 55. g5 {[%clk 0:00:08]}  Nd2 {[%clk 0:00:02]} 56. g6+ {[%clk 0:00:07]}  Kf6 {[%clk 0:00:02]} 57. h5 {[%clk 0:00:05]}  Nb3 {[%clk 0:00:02]} 58. Re1 {[%clk 0:00:03]}  c1=Q+ {[%clk 0:00:02]} 59. Rxc1 {[%clk 0:00:04]}  Rxc1 {[%clk 0:00:02]} 60. h6 {[%clk 0:00:05]}  Rf1+ {[%clk 0:00:02]} 61. Kg4 {[%clk 0:00:05]}  Nxd4 {[%clk 0:00:02]} 62. g7 {[%clk 0:00:04]}  Kf7 {[%clk 0:00:02]} 63. h7 {[%clk 0:00:01]}  Kxg7 {[%clk 0:00:02]} 64. f6+ {[%clk 0:00:02]}  Kh8 {[%clk 0:00:02]} 65. Kg5 {[%clk 0:00:03]}  Rg1+ {[%clk 0:00:02]} 66. Kh6 {[%clk 0:00:03]}  Ne6 {[%clk 0:00:03]} 67. f7 {[%clk 0:00:03]}  Nf8 {[%clk 0:00:04]} 68. Kh5 {[%clk 0:00:03]}  d4 {[%clk 0:00:05]} 69. Kh4 {[%clk 0:00:04]}  d3 {[%clk 0:00:06]} 70. Kh5 {[%clk 0:00:05]}  d2 {[%clk 0:00:06]} 71. Kh6 {[%clk 0:00:05]}  Rh1+ {[%clk 0:00:06]} 72. Kg5 {[%clk 0:00:05]}  d1=Q {[%clk 0:00:07]} 73. Kf6 {[%clk 0:00:00]}  Qd7 {[%clk 0:00:08]} 0-1


[Site "https://www.chess.com"]

[Event "Titled Tuesday Blitz July 4 Early 2023"]
[White "Grossboss19"]
[Black "Gavrilov, Maxim"]
[BlackFideId "24271454"]
[WhiteElo "2451"]
[BlackElo "2582"]
[Result "1-0"]
[Round "11"]
[TimeControl "180+2"]
[Date "2023.07.04"]
[WhiteClock "0:00:05"]
[BlackClock "0:00:00"]
[Board "64"]

1. e3 {[%clk 0:02:59]}  Nf6 {[%clk 0:02:58]} 2. d4 {[%clk 0:02:59]}  d5 {[%clk 0:02:57]} 3. c4 {[%clk 0:02:58]}  c6 {[%clk 0:02:57]} 4. Nc3 {[%clk 0:02:59]}  e6 {[%clk 0:02:57]} 5. b3 {[%clk 0:02:58]}  Nbd7 {[%clk 0:02:57]} 6. Bb2 {[%clk 0:02:58]}  Bd6 {[%clk 0:02:55]} 7. Nf3 {[%clk 0:02:58]}  O-O {[%clk 0:02:54]} 8. Bd3 {[%clk 0:02:57]}  e5 {[%clk 0:02:52]} 9. dxe5 {[%clk 0:02:56]}  Nxe5 {[%clk 0:02:52]} 10. cxd5 {[%clk 0:02:54]}  Nxd3+ {[%clk 0:02:43]} 11. Qxd3 {[%clk 0:02:51]}  cxd5 {[%clk 0:02:44]} 12. O-O {[%clk 0:02:49]}  Bg4 {[%clk 0:02:40]} 13. Nd4 {[%clk 0:02:29]}  a6 {[%clk 0:02:35]} 14. h3 {[%clk 0:02:25]}  Bd7 {[%clk 0:02:30]} 15. Nf3 {[%clk 0:02:16]}  Bc6 {[%clk 0:02:22]} 16. Rfd1 {[%clk 0:02:16]}  Re8 {[%clk 0:02:20]} 17. Ne2 {[%clk 0:02:09]}  Ne4 {[%clk 0:02:13]} 18. Ned4 {[%clk 0:01:59]}  Bd7 {[%clk 0:02:07]} 19. Rac1 {[%clk 0:01:54]}  Qe7 {[%clk 0:02:01]} 20. Ne2 {[%clk 0:01:47]}  Rad8 {[%clk 0:01:53]} 21. Qd4 {[%clk 0:01:35]}  f6 {[%clk 0:01:48]} 22. Nf4 {[%clk 0:01:04]}  Bc6 {[%clk 0:01:36]} 23. Qd3 {[%clk 0:00:42]}  Qf7 {[%clk 0:01:29]} 24. Nd4 {[%clk 0:00:40]}  Bd7 {[%clk 0:01:25]} 25. Nde2 {[%clk 0:00:39]}  Bc6 {[%clk 0:01:19]} 26. Nc3 {[%clk 0:00:33]}  Nc5 {[%clk 0:01:16]} 27. Qf5 {[%clk 0:00:29]}  Re5 {[%clk 0:01:11]} 28. Qb1 {[%clk 0:00:22]}  Rg5 {[%clk 0:01:11]} 29. Nce2 {[%clk 0:00:20]}  d4 {[%clk 0:00:53]} 30. Bxd4 {[%clk 0:00:19]}  Bxf4 {[%clk 0:00:52]} 31. Nxf4 {[%clk 0:00:19]}  Ne6 {[%clk 0:00:52]} 32. Bb6 {[%clk 0:00:16]}  Re8 {[%clk 0:00:47]} 33. g3 {[%clk 0:00:14]}  Nxf4 {[%clk 0:00:44]} 34. exf4 {[%clk 0:00:15]}  Rb5 {[%clk 0:00:39]} 35. Bd4 {[%clk 0:00:12]}  Be4 {[%clk 0:00:36]} 36. Qb2 {[%clk 0:00:12]}  Qe6 {[%clk 0:00:32]} 37. Kh2 {[%clk 0:00:11]}  Rh5 {[%clk 0:00:29]} 38. h4 {[%clk 0:00:10]}  Rxh4+ {[%clk 0:00:13]} 39. gxh4 {[%clk 0:00:10]}  Qg4 {[%clk 0:00:13]} 40. f3 {[%clk 0:00:08]}  Bxf3 {[%clk 0:00:12]} 41. Qf2 {[%clk 0:00:07]}  Qxf4+ {[%clk 0:00:10]} 42. Kg1 {[%clk 0:00:06]}  Qg4+ {[%clk 0:00:08]} 43. Kh2 {[%clk 0:00:05]}  Re2 {[%clk 0:00:07]} 44. Qxe2 {[%clk 0:00:06]}  Bxe2 {[%clk 0:00:08]} 45. Rd2 {[%clk 0:00:06]}  Bf3 {[%clk 0:00:08]} 46. Be3 {[%clk 0:00:04]}  Qxh4+ {[%clk 0:00:08]} 47. Kg1 {[%clk 0:00:05]}  Qh1+ {[%clk 0:00:07]} 48. Kf2 {[%clk 0:00:05]}  Qxc1 {[%clk 0:00:06]} 49. Rd8+ {[%clk 0:00:05]}  Kf7 {[%clk 0:00:04]} 50. Bxc1 {[%clk 0:00:06]}  Bc6 {[%clk 0:00:04]} 51. Rd2 {[%clk 0:00:06]}  h5 {[%clk 0:00:04]} 52. Kg3 {[%clk 0:00:07]}  g5 {[%clk 0:00:03]} 53. Rd4 {[%clk 0:00:07]}  h4+ {[%clk 0:00:03]} 54. Kg4 {[%clk 0:00:07]}  Kg6 {[%clk 0:00:03]} 55. Kh3 {[%clk 0:00:06]}  f5 {[%clk 0:00:03]} 56. Rd8 {[%clk 0:00:06]}  Kf6 {[%clk 0:00:01]} 57. Rf8+ {[%clk 0:00:06]}  Ke6 {[%clk 0:00:01]} 58. Bxg5 {[%clk 0:00:05]}  Be4 {[%clk 0:00:01]} 59. Kxh4 {[%clk 0:00:06]}  Kd5 {[%clk 0:00:01]} 60. Kg3 {[%clk 0:00:06]}  Kd4 {[%clk 0:00:01]} 61. Kf4 {[%clk 0:00:06]}  Kc3 {[%clk 0:00:02]} 62. Be7 {[%clk 0:00:05]}  Kb2 {[%clk 0:00:02]} 63. b4 {[%clk 0:00:06]}  Kxa2 {[%clk 0:00:02]} 64. Ke5 {[%clk 0:00:06]}  Kb3 {[%clk 0:00:02]} 65. Bc5 {[%clk 0:00:05]}  Ka4 {[%clk 0:00:02]} 66. Rf6 {[%clk 0:00:05]}  Kb5 {[%clk 0:00:00]} 67. Kd4 {[%clk 0:00:05]} 1-0


[Site "https://www.chess.com"]